Cogmind - Beta 14 @@@ ROGUE MODE // 2025.03.06 @ 15:05:33 Player: Iry-bot Result: Destroyed by as-67664 with Assembled Heavy Rifle Performance ------------- Evolutions (0) 0 Regions Visited (2) 400 Robots Destroyed (18) 90 Value Destroyed (325) 325 Prototype IDs (0) 0 Alien Tech Used (0) 0 Bonus (75) 75 TOTAL SCORE: 890 Bonus ------- Follower Combat Kills 75 Cogmind --------- Core Integrity 0/250 Matter 265/300 Energy 150/150 System Corruption 0% Temperature Cool (0) Movement Treading (320) Ox2 Location -10/Mines Parts ------- > --- POWER (1) -------- Light Angular Momentum Engine > --- PROPULSION (2) --- Light Treads > --- UTILITY (2) ------ Improved Heat Sink High-capacity Storage Unit > --- WEAPON (2) ------- Medium Laser Beamcaster > --- INVENTORY (20) --- Ion Engine Light Ion Engine Light Nuclear Core Light Treads Compact Wheel Compact Wheel Compact Wheel Heat Sink Improved Heat Sink Improved Heat Sink Medium Matter Pod (100) Visual Processing Unit Sensor Array Targeting Computer Targeting Computer ECM Suite Beam Cannon Light Assault Rifle Light Cannon Datajack Peak State ------------ > --- POWER ------------ Light Angular Momentum Engine > --- PROPULSION ------- Light Treads Light Treads > --- UTILITY ---------- Improved Heat Sink High-capacity Storage Unit > --- WEAPON ----------- Medium Laser Beamcaster > --- INVENTORY -------- Ion Engine Light Ion Engine Light Nuclear Core Light Treads Compact Wheel Compact Wheel Compact Wheel Heat Sink Improved Heat Sink Medium Matter Pod Visual Processing Unit Sensor Array Targeting Computer Targeting Computer ECM Suite Beam Cannon Light Assault Rifle Light Cannon Datajack [Rating: 19] Favorites ----------- Power Ion Engine Engine Ion Engine Propulsion Light Treads Treads Light Treads Utility High-capacity Storage Unit Device Heat Sink Storage High-capacity Storage Unit Protection Light Armor Plating Weapon Light Assault Rifle Energy Gun Small Laser Ballistic Gun Light Assault Rifle Build | -11 -10 -10 ------- Run | Yrd Mat Min Slots Evolved . | . . . Power . | . . . Propulsion . | . . . Utility . | . . . Weapon . | . . . Parts Attached 24 | 6 9 9 Power 7 | 1 4 2 Engine 7 | 1 4 2 Core . | . . . Reactor . | . . . Propulsion 4 | 2 . 2 Treads 4 | 2 . 2 Leg . | . . . Wheel . | . . . Hover . | . . . Flight . | . . . Utility 6 | 1 3 2 Device 2 | . . 2 Storage 3 | 1 2 . Processor . | . . . Hackware . | . . . Protection 1 | . 1 . Artifact . | . . . Weapon 7 | 2 2 3 Energy Gun 4 | . 1 3 Energy Cannon . | . . . Ballistic Gun 3 | 2 1 . Ballistic Cannon . | . . . Launcher . | . . . Special Weapon . | . . . Impact Weapon . | . . . Slashing Weapon . | . . . Piercing Weapon . | . . . Special Melee Weapon . | . . . Unidentified Prototypes . | . . . Parts Lost 8 | . 2 6 Power 1 | . . 1 Propulsion 3 | . . 3 Utility 1 | . 1 . Weapon 3 | . 1 2 Highest Loss Streak 5 | . 1 5 To Critical Strikes . | . . . Average Slot Usage (%) 92 | . 91 95 Engine 14 | . 14 14 Treads 27 | . 28 27 Device 2 | . . 10 Storage 14 | . 14 14 Protection 5 | . 6 . Energy Gun 6 | . 2 24 Ballistic Gun 21 | . 25 2 Peak Build Rating 19 | 6 8 19 Average Rating 8 | 4 7 12 On Entrance 4 | . 6 7 Naked Turns . | . . . Heaviest Build 91 | 11 91 57 Greatest Support 40 | 40 40 40 Greatest Overweight (x) 2 | 2 2 2 Average Overweight (x) 1 | . 1 1 Largest Inventory Capacity 25 | 8 25 20 Average Capacity 20 | 7 21 20 Most Carried 20 | 3 17 20 Average Carried 13 | 2 12 19 Final Capacity 20 | 8 20 20 Final Carried 20 | 3 17 20 Class Distribution -------------------- 86% | Mutant 13% | Scavenger-Mutant Dominant Class ---------------- Mutant | -10/Materials Scavenger-Mutant | -10/Mines Resources | -11 -10 -10 ----------- Run | Yrd Mat Min Matter Collected 702 | 174 486 42 Remotely . | . . . Salvage Created 559 | . 559 . Parts 32 | . 32 . Haulers Intercepted 1 | . 1 . Recyclers Shooed 1 | . . 1 Parts Field Recycled . | . . . Retrieved Matter . | . . . Parts Self-Destructed . | . . . Prevented . | . . . Kills | -11 -10 -10 ------- Run | Yrd Mat Min Combat Hostiles Destroyed 11 | . 11 . Guns 11 | . 11 . Classes Destroyed 7 | . 7 . Worker 2 | . 2 . Hauler 1 | . 1 . Recycler 1 | . 1 . Operator 1 | . 1 . Watcher 2 | . 2 . Swarmer 5 | . 5 . Grunt 6 | . 6 . Best Kill Streak 4 | . 4 . Combat Bots Only 3 | . 3 . Max Kills in Single Turn 2 | . 2 . Gunslinging . | . . . Exploded . | . . . Melee . | . . . Uniques/NPCs Destroyed . | . . . Combat | -11 -10 -10 -------- Run | Yrd Mat Min Hostile Shots Fired 121 | . 89 32 Missed 25 | . 19 6 Damage Taken 1400 | . 695 705 Core 252 | . 122 130 Absorbed by Shields . | . . . Core Remaining (%) 100 | 100 . . Volleys Fired 83 | . 68 15 Largest 2 | . 2 2 Hottest 125 | . 60 125 Shots Fired 161 | . 133 28 Gun 161 | . 133 28 Cannon . | . . . Launcher . | . . . Special . | . . . Kinetic 124 | . 119 5 Thermal 37 | . 14 23 Explosive . | . . . Electromagnetic . | . . . Robot Hit Streak 9 | . 9 5 Robot Miss Streak 6 | . 6 2 Penetration Max . | . . . Secondary Targets . | . . . Shots Hit Robots 98 | . 81 17 Core Hits 37 | . 33 4 Critical Kills . | . . . Critical Parts Destroyed . | . . . Critical Strikes 2 | . . 2 Burn 2 | . . 2 Melee Attacks . | . . . Impact . | . . . Slashing . | . . . Piercing . | . . . Sneak Attacks . | . . . Combat Hostiles . | . . . Follow-up Attacks . | . . . Damage Inflicted 1028 | . 826 202 Guns 1028 | . 826 202 Cannons . | . . . Explosions . | . . . Melee . | . . . Ramming . | . . . Kinetic 752 | . 737 15 Thermal 276 | . 89 187 Explosive . | . . . Electromagnetic . | . . . Impact . | . . . Slashing . | . . . Piercing . | . . . Highest Corruption . | . . . Average Corruption . | . . . Corruption Purged . | . . . Corruption Blocked . | . . . Overload Shots . | . . . Overflow Damage . | . . . Projectiles . | . . . Explosions . | . . . Melee . | . . . Knockbacks . | . . . Impact . | . . . Kinetic . | . . . Secondary . | . . . Self-Inflicted Damage . | . . . Shots . | . . . Rammed . | . . . Targets Rammed . | . . . Kicked . | . . . Crushed . | . . . Highest Temperature 63 | . 63 60 Average Temperature 17 | . 16 19 Received Heat Transfer 312 | . 270 42 Siege Activations . | . . . Robots Corrupted . | . . . Combat Hostiles . | . . . Parts Fried . | . . . Impact Corruptions . | . . . Robots Melted . | . . . Combat Hostiles . | . . . Parts Melted 1 | . 1 . Heat Transferred 795 | . 200 595 Parts Sabotaged . | . . . Parts Stolen . | . . . Parts Stripped . | . . . Power Chain Reactions . | . . . Alert | -11 -10 -10 ------- Run | Yrd Mat Min Peak Influence 165 | . 165 77 Initial 9 | . . 9 Average 49 | . 57 23 Maximum Alert Level . | . . . Low Security (%) 100 | 100 100 100 Level 1 . | . . . Level 2 . | . . . Level 3 . | . . . Level 4 . | . . . Level 5 . | . . . High Security . | . . . Max Security . | . . . Squads Dispatched 4 | . 3 1 Investigation 2 | . 2 . Extermination . | . . . Reinforcement 1 | . 1 . Assault 1 | . . 1 Garrison . | . . . Intercept . | . . . Searches Triggered . | . . . Construction Impeded . | . . . Haulers Reinforced . | . . . Active Scanning Responses . | . . . Cargo Convoy Interrupts . | . . . Stealth | -11 -10 -10 --------- Run | Yrd Mat Min Distress Signals . | . . . Communications Jammed . | . . . Distress Signals . | . . . Times Spotted 38 | . 22 16 Peak Tracking Total 6 | . 3 6 Tactical Retreats 3 | . 2 1 Traps | -11 -10 -10 ------- Run | Yrd Mat Min Traps Triggered . | . . . Indirectly . | . . . Trap Hack Attempts . | . . . Triggered . | . . . Disarmed . | . . . Reprogrammed . | . . . Reused . | . . . Traps Extracted . | . . . Installed . | . . . Triggered . | . . . Machines | -11 -10 -10 ---------- Run | Yrd Mat Min Machines Disabled . | . . . Max in Single Turn . | . . . Machines Repaired . | . . . Machines Dismantled . | . . . Machines Sabotaged . | . . . Overloaded Fab Kills . | . . . Hacking | -11 -10 -10 --------- Run | Yrd Mat Min Machines Accessed 6 | . 6 . Terminals 3 | . 3 . Fabricators . | . . . Repair Stations 1 | . 1 . Recycling Units 2 | . 2 . Scanalyzers . | . . . Garrison Access . | . . . Total Hacks 20 | . 20 . Successful 11 | . 11 . Failed 9 | . 9 . Catastrophic . | . . . Database Lockouts . | . . . Manual 11 | . 11 . Terminals 9 | . 9 . Fabricators . | . . . Repair Stations 3 | . 3 . Recycling Units 8 | . 8 . Scanalyzers . | . . . Garrison Access . | . . . Terminal Hacks 1 | . 1 . Terminal Index 1 | . 1 . Fabricator Hacks . | . . . Repair Station Hacks 1 | . 1 . Scan Component 1 | . 1 . Recycling Unit Hacks 5 | . 5 . Report Inventory 1 | . 1 . Retrieve Matter 2 | . 2 . Retrieve Components 2 | . 2 . Scanalyzer . | . . . Garrison Access Hacks . | . . . Unauthorized Hacks 4 | . 4 . Terminals 2 | . 2 . Assimilate 1 | . 1 . Botnet 1 | . 1 . Fabricators . | . . . Repair Stations . | . . . Recycling Units 2 | . 2 . Tunnel 2 | . 2 . Scanalyzers . | . . . Garrison Access . | . . . Data Cores Recovered . | . . . Used . | . . . Hacking Detections 5 | . 5 . Full Trace Events 1 | . 1 . Feedback Events . | . . . Feedback Blocked . | . . . Robot Schematics Acquired . | . . . Robots Built . | . . . Authchips . | . . . Time . | . . . Total Robot Build Rating . | . . . Part Schematics Acquired . | . . . Parts Built . | . . . Authchips . | . . . Time . | . . . Total Part Build Rating . | . . . Parts Repaired . | . . . Time . | . . . Parts Recycled . | . . . Recycled Matter . | . . . Retrieved Matter . | . . . Retrieved Components 5 | . 5 . Parts Scanalyzed . | . . . Part Schematics Acquired . | . . . Parts Damaged . | . . . Bothacking | -11 -10 -10 ------------ Run | Yrd Mat Min Used RIF Installer . | . . . Robots Hacked . | . . . Non-combat . | . . . Combat . | . . . Robot Hacks Applied . | . . . Relay Couplers Released . | . . . Fabnet Peak Effective % . | . . . Robots Rewired . | . . . Allies Hacked . | . . . Hacks Repelled . | . . . Allies | -11 -10 -10 -------- Run | Yrd Mat Min Total Allies 1 | . . 1 Largest Group 1 | . . 1 Highest-Rated Group 31 | . . 31 Highest-Rated Ally 31 | . . 31 Total Orders . | . . . Ally Attacks 6 | . . 6 Total Damage 109 | . . 109 Kills 3 | . . 3 Allies Corrupted . | . . . Allies Melted . | . . . Intel | -11 -10 -10 ------- Run | Yrd Mat Min Robot Analysis Total . | . . . Derelict Logs Recovered 1 | . . 1 Drone Launches . | . . . Drone Recoveries . | . . . Exploration | -11 -10 -10 ------------- Run | Yrd Mat Min Turns Passed 1653 | 56 1289 308 Spaces Moved 543 | 32 412 99 Core 12 | 12 . . Treads 531 | 20 412 99 Legs . | . . . Wheels . | . . . Hover . | . . . Flight . | . . . Fastest Speed 50 | 50 160 240 Average Speed 247 | 142 257 241 Slowest Speed 320 | 160 320 320 Overloaded Moves . | . . . Propulsion Burnouts . | . . . Robots Hopped . | . . . Cave-ins Triggered . | . . . Exploration Rate (%) 31 | 3 63 27 Regions Visited 2 Branch Regions 1 Pre-discovered Areas 3 | . 2 1 Known Exits Taken . | . . . Unknown Exits Taken 2 | 1 1 . Scrap Searched . | . . . Spaces Dug . | . . . Terrain Destroyed . | . . . Melee . | . . . Projectile . | . . . AOE . | . . . Terrain Rammed . | . . . Walls Destroyed . | . . . Machines Disabled . | . . . Actions | -11 -10 -10 --------- Run | Yrd Mat Min Total 704 | 40 521 143 Wait 17 | . 10 7 Move 541 | 31 411 99 Hop . | . . . Pick Up 26 | 3 15 8 Fast Attach 11 | 6 2 3 Attach 5 | . 1 4 Detach 2 | . 1 1 Swap 8 | . 6 2 Drop 11 | . 7 4 Fire 83 | . 68 15 Melee . | . . . Ram . | . . . Kick . | . . . Crush . | . . . Escape Stasis . | . . . Rewire . | . . . Trap . | . . . Miscellaneous . | . . . Route ------- -11/Scrapyard -10/Materials (discovered 2 exits: [*Mat] / [*Min]) -10/Mines History --------- Turn | Location | Event 14 | -11/Scrapyard | Discovered new exit (range 15) 57 | -11/Scrapyard | Entered Materials 309 | -10/Materials | Build established: Mutant 859 | -10/Materials | Discovered new exit (range 4) 1262 | -10/Materials | Discovered new exit (range 11) 1346 | -10/Materials | Entered Mines 1354 | -10/Mines | Joined a pair of Derelicts in attacking an 0b10 outpost 1361 | -10/Mines | Core integrity fell below 50% 1441 | -10/Mines | Met a Derelict bent on vengeance 1475 | -10/Mines | Met a Derelict testing a Signal Generator 1541 | -10/Mines | Learned location of Zion (-7) 1588 | -10/Mines | Assembled infested the area 1622 | -10/Mines | Core integrity fell below 20% 1654 | -10/Mines | Destroyed by as-67664 with Assembled Heavy Rifle Last Messages --------------- 01641_ U-05 Engineer builds a Wall. 01642_ K-01 Serf collects debris. 01644_ Lgt. Angular Momentum Engine destroyed. 01645_ as-46958 sneak attacks. 01646_ The unstable cave ceiling collapses. 01646_ Acquired Imp. Heat Sink. 01646_ K-01 Serf collects debris. 01647_ The unstable cave ceiling collapses. 01647_ K-01 Serf collects debris. 01648_ R-06 Scavenger destroyed. 01649_ K-01 Serf collects debris. 01649_ Acquired Lgt. Angular Momentum Engine. 01650_ as-62249 sneak attacks. 01650_ K-01 Serf system corrupted by crushing effect. 01650_ K-01 Serf knocked back. 01650_ K-01 Serf collects debris. 01651_ K-01 Serf system terminally corrupted. 01651_ K-01 Serf destroyed. 01654_ Lgt. Treads destroyed. Map ----- +----------------------------------------------------+ | ??????????# [[ +% ???????? | | ??????????#%* + #?????????? | | ??????????#% ! # # #### #??????????? | | ??????????##! ## # #????? #??????????? | | ?????????####### # #??????? #?????????? | | ???###???# # #????????? ??????????? | | ??## #??# # #??????????? ??????????? | | ?## #?# ##### # #???????????????????????? | | ?# ## ##?# # #???????????????????????? | | ?# #?# # #???????????????????????? | | ?# #?######### #???????????????????????? | | ?## ##?????????#=######??????????????????? | | ??#& #####??????????#*%[%=!#??????????????????? | | ??# #???????????????######[###???????? ??????? | | ??## #??????????????????## #=# ##????? #?????? | | ???###?????????????###??## #!# ##?? #??????? | | ???????????????????# ### =#%# # # #???????? | | ???????????????????# % # =| # #???????? | | ?????????????????### ! = # #???????? | | ?????????????????# %% aa ## #??????? | | ?????????????????# # aa### ## #??????????????? | | ??????????????????????##% ! % #??????????????? | | ???????????????????????#a%a ##??????????????? | | ???????????????????????# # # #??????????????? | | ???????????????????????# ###### #?????????????? | | ???????????????????????# @#????? ???????????? | | ???????????????????????# #????? ??????????? | | ???????????????????????### #????? ?????????? | | ?????????????????????????? #?????? ????????? | | ?????????????????????????? #?????? ????????? | | ?????????????????????????? #??????? %" ????????? | | ?????????????????????????? #??????? *!???????????? | | ?????????????????????????? #???????? ????????????? | | ?????????????????????????? #?????????????????????? | | ?????????????????????????? #?????????????????????? | | ???????????????????????????#?????????????????????? | | ?????????????????????????????????????????????????? | | ?????????????????????????????????????????????????? | | ?????????????????????????????????????????????????? | | ?????????????????????????????????????????????????? | | ?????????????????????????????????????????????????? | | ?????????????????????????????????????????????????? | | ?????????????????????????????????????????????????? | | ?????????????????????????????????????????????????? | | ?????????????????????????????????????????????????? | | ?????????????????????????????????????????????????? | | ?????????????????????????????????????????????????? | | ?????????????????????????????????????????????????? | | ?????????????????????????????????????????????????? | | ?????????????????????????????????????????????????? | +----------------------------------------------------+ Best States ------------- Heat Dissipation 39 Energy Generation 18 Energy Capacity 250 Matter Stores 300 Matter Capacity 300 Sight Range 16 Terrain Scan Density 10 Armor Coverage 150 Evasion (%) 40 Recoil Reduction 2 Item Schematics ----------------- None Robot Schematics ------------------ None Fabricated ------------ Nothing Alien Tech Used ----------------- None Achievements -------------- None Challenges ------------ None Game ------ Seed TowerSkeletonInjector Manual? 0 Play Time 00:13:15 Cumulative 54.0 hours Start 2025.03.06 @ 14:54:49 End 2025.03.06 @ 15:05:33 Sessions 1 Manual Loads 0 Difficulty Rogue Special Mode None Game No. 51 Rogue 51 Adventurer 0 Explorer 0 Win Type - Total 0 Types 0/0/0/0/0/0/0/0/0 Lore% 48 Gallery% 44 Achievement% 37 Wizard Run 0 Options --------- Layout 1 ASCII 0 Keyboard 0 Movement Mouse Keybinds 0 Fullscreen 1 Font 16/SmallcapsGlow Map View 55x38 Zoom Use 0% Tactical HUD 1 Map Filters NONE Filters NONE Steam 1 RUN: c1eabb71-f9e5-4d5d-aa65-d7c8b92cfaaf